Workbook

Sheet Sheet1
A1: 三穗县事业单位2024年公开招聘工作人员拟聘用人员名单
A2: 序号 | B2: 姓名 | C2: 单位名称 | D2: 职位代码 | E2: 笔试成绩 | H2: 面试成绩 | J2: 综合成绩 | K2: 综合排名 | L2: 体检结果 | M2: 政审结果 | N2: 备注
E3: 笔试总分 | F3: 笔试环节成绩 | G3: 占综合成绩60% | H3: 面试环节成绩 | I3: 占综合成绩40%
A4: 1 | B4: 罗慧江 | C4: 三穗县融媒体中心 | D4: 22608030901 | E4: 202 | F4: =E4/3 -> 67.33 | G4: =F4*0.6 -> 40.40 | H4: 80.20 | I4: =H4*0.4 -> 32.08 | J4: =G4+I4 -> 72.48 | K4: 1 | L4: 合格 | M4: 合格 | N4: 拟聘用
A5: 2 | B5: 倪先鑫 | C5: 三穗县文笔街道党务政务综合服务中心 | D5: 22608031001 | E5: 210.5 | F5: =E5/3 -> 70.17 | G5: =F5*0.6 -> 42.10 | H5: 77.60 | I5: =H5*0.4 -> 31.04 | J5: =G5+I5 -> 73.14 | K5: 1 | L5: 合格 | M5: 合格 | N5: 拟聘用
A6: 3 | B6: 张绪琦 | C6: 三穗县武笔街道党委政务综合服务中心 | D6: 22608031101 | E6: 217 | F6: =E6/3 -> 72.33 | G6: =F6*0.6 -> 43.40 | H6: 77.80 | I6: =H6*0.4 -> 31.12 | J6: =G6+I6 -> 74.52 | K6: 1 | L6: 合格 | M6: 合格 | N6: 拟聘用
A7: 4 | B7: 蒋滔 | C7: 三穗县滚马乡农业服务中心 | D7: 22608031201 | E7: 178 | F7: =E7/3 -> 59.33 | G7: =F7*0.6 -> 35.60 | H7: 82.40 | I7: =H7*0.4 -> 32.96 | J7: =G7+I7 -> 68.56 | K7: 1 | L7: 合格 | M7: 合格 | N7: 拟聘用
A8: 5 | B8: 田会银 | C8: 三穗县款场乡党建工作站 | D8: 22608031301 | E8: 175.5 | F8: =E8/3 -> 58.50 | G8: =F8*0.6 -> 35.10 | H8: 77.80 | I8: =H8*0.4 -> 31.12 | J8: =G8+I8 -> 66.22 | K8: 1 | L8: 合格 | M8: 合格 | N8: 拟聘用
A9: 6 | B9: 米光侑 | C9: 三穗县款场乡财政所 | D9: 22608031401 | E9: 169 | F9: =E9/3 -> 56.33 | G9: =F9*0.6 -> 33.80 | H9: 81.40 | I9: =H9*0.4 -> 32.56 | J9: =G9+I9 -> 66.36 | K9: 1 | L9: 合格 | M9: 合格 | N9: 拟聘用
A10: 7 | B10: 龙香香 | C10: 三穗县台烈镇国土资源和规划建设环保中心 | D10: 22608031501 | E10: 187.5 | F10: =E10/3 -> 62.50 | G10: =F10*0.6 -> 37.50 | H10: 79.00 | I10: =H10*0.4 -> 31.60 | J10: =G10+I10 -> 69.10 | K10: 1 | L10: 合格 | M10: 合格 | N10: 拟聘用
A11: 8 | B11: 吴胜桃 | C11: 三穗县桐林镇农业服务中心 | D11: 22608031601 | E11: 176.5 | F11: =E11/3 -> 58.83 | G11: =F11*0.6 -> 35.30 | H11: 75.40 | I11: =H11*0.4 -> 30.16 | J11: =G11+I11 -> 65.46 | K11: 1 | L11: 合格 | M11: 合格 | N11: 拟聘用
A12: 9 | B12: 杨霞 | C12: 三穗县桐林镇乡村振兴工作站 | D12: 22608031701 | E12: 173.5 | F12: =E12/3 -> 57.83 | G12: =F12*0.6 -> 34.70 | H12: 77.00 | I12: =H12*0.4 -> 30.80 | J12: =G12+I12 -> 65.50 | K12: 1 | L12: 合格 | M12: 合格 | N12: 拟聘用
A13: 10 | B13: 王明娜 | C13: 三穗县瓦寨镇退役军人服务站 | D13: 22608032001 | E13: 184 | F13: =E13/3 -> 61.33 | G13: =F13*0.6 -> 36.80 | H13: 76.00 | I13: =H13*0.4 -> 30.40 | J13: =G13+I13 -> 67.20 | K13: 1 | L13: 合格 | M13: 合格 | N13: 拟聘用
A14: 11 | B14: 龙景文 | C14: 三穗县长吉镇国土资源和规划建设环保中心 | D14: 22608032101 | E14: 209.5 | F14: 69.83 | G14: 41.90 | H14: 82.20 | I14: 32.88 | J14: 74.78 | K14: 1 | L14: 合格 | M14: 合格 | N14: 拟聘用
A15: 12 | B15: 李涛 | C15: 三穗县长吉镇国土资源和规划建设环保中心 | D15: 22608032102 | E15: 144 | F15: 48.00 | G15: 28.80 | H15: 71.20 | I15: 28.48 | J15: 57.28 | K15: 1 | L15: 合格 | M15: 合格 | N15: 拟聘用
A16: 13 | B16: 佘乾盛 | C16: 三穗县长吉镇林业站 | D16: 22608032201 | E16: 188 | F16: 62.67 | G16: 37.60 | H16: 78.94 | I16: 31.58 | J16: 69.18 | K16: 1 | L16: 合格 | M16: 合格 | N16: 拟聘用
A17: 14 | B17: 段川丽 | C17: 三穗县长吉镇财政所 | D17: 22608032301 | E17: 218 | F17: 72.67 | G17: 43.60 | H17: 83.80 | I17: 33.52 | J17: 77.12 | K17: 1 | L17: 合格 | M17: 合格 | N17: 拟聘用
A18: 15 | B18: 唐丹 | C18: 三穗县良上镇乡村振兴工作站 | D18: 22608032401 | E18: 195.5 | F18: 65.17 | G18: 39.10 | H18: 84.00 | I18: 33.60 | J18: 72.70 | K18: 1 | L18: 合格 | M18: 合格 | N18: 拟聘用
A19: 16 | B19: 吴勇谋 | C19: 三穗县良上镇农业服务中心 | D19: 22608032501 | E19: 171.5 | F19: 57.17 | G19: 34.30 | H19: 79.70 | I19: 31.88 | J19: 66.18 | K19: 1 | L19: 合格 | M19: 合格 | N19: 拟聘用
A20: 17 | B20: 曾炜 | C20: 三穗县良上镇综治中心 | D20: 22608032601 | E20: 179.5 | F20: 59.83 | G20: 35.90 | H20: 78.36 | I20: 31.34 | J20: 67.24 | K20: 1 | L20: 合格 | M20: 合格 | N20: 拟聘用
A21: 18 | B21: 吴柏志 | C21: 三穗县雪洞镇人民政府国土资源规划建设环保中心 | D21: 22608032701 | E21: 207.5 | F21: 69.17 | G21: 41.50 | H21: 81.30 | I21: 32.52 | J21: 74.02 | K21: 1 | L21: 合格 | M21: 合格 | N21: 拟聘用
A22: 19 | B22: 胡妃 | C22: 三穗县雪洞镇人民政府综治中心 | D22: 22608032801 | E22: 198 | F22: 66.00 | G22: 39.60 | H22: 81.50 | I22: 32.60 | J22: 72.20 | K22: 1 | L22: 合格 | M22: 合格 | N22: 拟聘用
A23: 20 | B23: 陈宴林 | C23: 三穗县人民医院 | D23: 22608032901 | E23: 136.5 | F23: 45.50 | G23: 27.30 | H23: 83.00 | I23: 33.20 | J23: 60.50 | K23: 1 | L23: 合格 | M23: 合格 | N23: 拟聘用
A24: 21 | B24: 吴琪 | C24: 三穗县中医医院 | D24: 22608033001 | E24: 176.3 | F24: 58.77 | G24: 35.26 | H24: 84.20 | I24: 33.68 | J24: 68.94 | K24: 1 | L24: 合格 | M24: 合格 | N24: 拟聘用
A25: 22 | B25: 杨璐瑶 | C25: 三穗县民族高级中学 | D25: 22608033101 | E25: 189 | F25: 63.00 | G25: 37.80 | H25: 81.84 | I25: 32.74 | J25: 70.54 | K25: 1 | L25: 合格 | M25: 合格 | N25: 拟聘用
A26: 23 | B26: 高佳玉 | C26: 三穗县民族高级中学 | D26: 22608033101 | E26: 192 | F26: 64.00 | G26: 38.40 | H26: 78.80 | I26: 31.52 | J26: 69.92 | K26: 2 | L26: 合格 | M26: 合格 | N26: 拟聘用
A27: 24 | B27: 吴恒娟 | C27: 三穗县民族高级中学 | D27: 22608033102 | E27: 163 | F27: =E27/3 -> 54.33 | G27: =F27*0.6 -> 32.60 | H27: 83.50 | I27: =H27*0.4 -> 33.40 | J27: =G27+I27 -> 66.00 | K27: 2 | L27: 合格 | M27: 合格 | N27: 拟聘用
A28: 25 | B28: 杨小龙 | C28: 三穗县民族高级中学 | D28: 22608033104 | G28: 直接入围面试 | H28: 64.40 | I28: =H28 -> 64.40 | J28: =I28 -> 64.40 | K28: 1 | L28: 合格 | M28: 合格 | N28: 拟聘用
A29: 26 | B29: 杜雨雨 | C29: 三穗县民族高级中学 | D29: 22608033106 | E29: 170.5 | F29: =E29/3 -> 56.83 | G29: =F29*0.6 -> 34.10 | H29: 83.70 | I29: =H29*0.4 -> 33.48 | J29: =G29+I29 -> 67.58 | K29: 1 | L29: 合格 | M29: 合格 | N29: 拟聘用
A30: 27 | B30: 杨树宝 | C30: 三穗县民族高级中学 | D30: 22608033106 | E30: 161 | F30: =E30/3 -> 53.67 | G30: =F30*0.6 -> 32.20 | H30: 78.76 | I30: =H30*0.4 -> 31.50 | J30: =G30+I30 -> 63.70 | K30: 2 | L30: 合格 | M30: 合格 | N30: 拟聘用
A31: 28 | B31: 魏茜瑶 | C31: 三穗县第二中学 | D31: 22608033201 | E31: 204.5 | F31: =E31/3 -> 68.17 | G31: =F31*0.6 -> 40.90 | H31: 86.98 | I31: =H31*0.4 -> 34.79 | J31: =G31+I31 -> 75.69 | K31: 1 | L31: 合格 | M31: 合格 | N31: 拟聘用
A32: 29 | B32: 凡丹 | C32: 三穗县第二中学 | D32: 22608033202 | E32: 184.5 | F32: =E32/3 -> 61.50 | G32: =F32*0.6 -> 36.90 | H32: 73.92 | I32: =H32*0.4 -> 29.57 | J32: =G32+I32 -> 66.47 | K32: 1 | L32: 合格 | M32: 合格 | N32: 拟聘用
A33: 30 | B33: 邓思婷 | C33: 三穗县第二中学 | D33: 22608033203 | E33: 198.5 | F33: =E33/3 -> 66.17 | G33: =F33*0.6 -> 39.70 | H33: 84.62 | I33: =H33*0.4 -> 33.85 | J33: =G33+I33 -> 73.55 | K33: 1 | L33: 合格 | M33: 合格 | N33: 拟聘用
A34: 31 | B34: 汪勤芳 | C34: 三穗县第二中学 | D34: 22608033203 | E34: 185 | F34: =E34/3 -> 61.67 | G34: =F34*0.6 -> 37.00 | H34: 84.88 | I34: =H34*0.4 -> 33.95 | J34: =G34+I34 -> 70.95 | K34: 2 | L34: 合格 | M34: 合格 | N34: 拟聘用
A35: 32 | B35: 李英琴 | C35: 三穗县第二中学 | D35: 22608033205 | E35: 184 | F35: =E35/3 -> 61.33 | G35: =F35*0.6 -> 36.80 | H35: 85.20 | I35: =H35*0.4 -> 34.08 | J35: =G35+I35 -> 70.88 | K35: 1 | L35: 合格 | M35: 合格 | N35: 拟聘用
A36: 33 | B36: 周丹 | C36: 三穗县第二中学 | D36: 22608033208 | E36: 185.5 | F36: =E36/3 -> 61.83 | G36: =F36*0.6 -> 37.10 | H36: 84.70 | I36: =H36*0.4 -> 33.88 | J36: =G36+I36 -> 70.98 | K36: 1 | L36: 合格 | M36: 合格 | N36: 拟聘用
A37: 34 | B37: 蒲俊宏 | C37: 三穗县第二中学 | D37: 22608033209 | E37: 200 | F37: =E37/3 -> 66.67 | G37: =F37*0.6 -> 40.00 | H37: 73.60 | I37: =H37*0.4 -> 29.44 | J37: =G37+I37 -> 69.44 | K37: 1 | L37: 合格 | M37: 合格 | N37: 拟聘用
A38: 35 | B38: 田坤坤 | C38: 三穗县第二中学 | D38: 22608033211 | G38: 直接入围面试 | H38: 81.00 | I38: =H38 -> 81.00 | J38: =I38 -> 81.00 | K38: 1 | L38: 合格 | M38: 合格 | N38: 拟聘用
A39: 36 | B39: 蒋怡敏 | C39: 三穗县第二中学 | D39: 22608033213 | E39: 197 | F39: =E39/3 -> 65.67 | G39: =F39*0.6 -> 39.40 | H39: 81.20 | I39: =H39*0.4 -> 32.48 | J39: =G39+I39 -> 71.88 | K39: 1 | L39: 合格 | M39: 合格 | N39: 拟聘用
A40: 37 | B40: 王洪贵 | C40: 三穗县第二中学 | D40: 22608033214 | E40: 176 | F40: =E40/3 -> 58.67 | G40: =F40*0.6 -> 35.20 | H40: 79.33 | I40: =H40*0.4 -> 31.73 | J40: =G40+I40 -> 66.93 | K40: 1 | L40: 合格 | M40: 合格 | N40: 拟聘用
A41: 38 | B41: 徐文琴 | C41: 三穗县第二中学 | D41: 22608033214 | E41: 170 | F41: =E41/3 -> 56.67 | G41: =F41*0.6 -> 34.00 | H41: 77.65 | I41: =H41*0.4 -> 31.06 | J41: =G41+I41 -> 65.06 | K41: 2 | L41: 合格 | M41: 合格 | N41: 拟聘用
A42: 39 | B42: 张柔雪 | C42: 三穗县第二中学 | D42: 22608033214 | E42: 158.5 | F42: =E42/3 -> 52.83 | G42: =F42*0.6 -> 31.70 | H42: 81.80 | I42: =H42*0.4 -> 32.72 | J42: =G42+I42 -> 64.42 | K42: 3 | L42: 合格 | M42: 合格 | N42: 拟聘用
A43: 40 | B43: 杨阿倩 | C43: 三穗县第二中学 | D43: 22608033215 | G43: 直接入围面试 | H43: 84.56 | I43: =H43 -> 84.56 | J43: =I43 -> 84.56 | K43: 1 | L43: 合格 | M43: 合格 | N43: 拟聘用
A44: 41 | B44: 陈功宏 | C44: 三穗县第二中学 | D44: 22608033215 | G44: 直接入围面试 | H44: 80.90 | I44: =H44 -> 80.90 | J44: =I44 -> 80.90 | K44: 3 | L44: 合格 | M44: 合格 | N44: 拟聘用
A45: 42 | B45: 杨秋红 | C45: 三穗县第二中学 | D45: 22608033216 | E45: 192.5 | F45: =E45/3 -> 64.17 | G45: =F45*0.6 -> 38.50 | H45: 83.55 | I45: =H45*0.4 -> 33.42 | J45: =G45+I45 -> 71.92 | K45: 1 | L45: 合格 | M45: 合格 | N45: 拟聘用
A46: 43 | B46: 向德香 | C46: 三穗县第二中学 | D46: 22608033216 | E46: 181 | F46: =E46/3 -> 60.33 | G46: =F46*0.6 -> 36.20 | H46: 83.06 | I46: =H46*0.4 -> 33.22 | J46: =G46+I46 -> 69.42 | K46: 2 | L46: 合格 | M46: 合格 | N46: 拟聘用
A47: 44 | B47: 姚茂颖 | C47: 三穗县第二中学 | D47: 22608033217 | E47: 191 | F47: =E47/3 -> 63.67 | G47: =F47*0.6 -> 38.20 | H47: 78.20 | I47: =H47*0.4 -> 31.28 | J47: =G47+I47 -> 69.48 | K47: 2 | L47: 合格 | M47: 合格 | N47: 拟聘用
A48: 45 | B48: 贺诗宇 | C48: 三穗县第二中学 | D48: 22608033218 | E48: 175.5 | F48: =E48/3 -> 58.50 | G48: =F48*0.6 -> 35.10 | H48: 83.54 | I48: =H48*0.4 -> 33.42 | J48: =G48+I48 -> 68.52 | K48: 1 | L48: 合格 | M48: 合格 | N48: 拟聘用
A49: 46 | B49: 王璇 | C49: 三穗县第二中学 | D49: 22608033219 | E49: 191 | F49: =E49/3 -> 63.67 | G49: =F49*0.6 -> 38.20 | H49: 78.40 | I49: =H49*0.4 -> 31.36 | J49: =G49+I49 -> 69.56 | K49: 1 | L49: 合格 | M49: 合格 | N49: 拟聘用
A50: 47 | B50: 吴安江 | C50: 三穗县第二中学 | D50: 22608033221 | E50: 177.5 | F50: =E50/3 -> 59.17 | G50: =F50*0.6 -> 35.50 | H50: 84.80 | I50: =H50*0.4 -> 33.92 | J50: =G50+I50 -> 69.42 | K50: 1 | L50: 合格 | M50: 合格 | N50: 拟聘用
A51: 48 | B51: 王泽鸿 | C51: 三穗县第二中学 | D51: 22608033221 | E51: 187.5 | F51: =E51/3 -> 62.50 | G51: =F51*0.6 -> 37.50 | H51: 79.40 | I51: =H51*0.4 -> 31.76 | J51: =G51+I51 -> 69.26 | K51: 2 | L51: 合格 | M51: 合格 | N51: 拟聘用
A52: 49 | B52: 罗雅洁 | C52: 三穗县第二中学 | D52: 22608033223 | E52: 180.5 | F52: =E52/3 -> 60.17 | G52: =F52*0.6 -> 36.10 | H52: 83.70 | I52: =H52*0.4 -> 33.48 | J52: =G52+I52 -> 69.58 | K52: 1 | L52: 合格 | M52: 合格 | N52: 拟聘用
A53: 50 | B53: 杨芬 | C53: 三穗县第二中学 | D53: 22608033223 | E53: 162.5 | F53: =E53/3 -> 54.17 | G53: =F53*0.6 -> 32.50 | H53: 83.10 | I53: =H53*0.4 -> 33.24 | J53: =G53+I53 -> 65.74 | K53: 2 | L53: 合格 | M53: 合格 | N53: 拟聘用
A54: 51 | B54: 杨慧 | C54: 三穗县第二中学 | D54: 22608033225 | E54: 186.5 | F54: =E54/3 -> 62.17 | G54: =F54*0.6 -> 37.30 | H54: 86.20 | I54: =H54*0.4 -> 34.48 | J54: =G54+I54 -> 71.78 | K54: 1 | L54: 合格 | M54: 合格 | N54: 拟聘用
A55: 52 | B55: 郭艳慧 | C55: 三穗县第三中学 | D55: 22608033301 | E55: 193.5 | F55: 64.50 | G55: 38.70 | H55: 82.10 | I55: 32.84 | J55: 71.54 | K55: 1 | L55: 合格 | M55: 合格 | N55: 拟聘用
A56: 53 | B56: 田飞燕 | C56: 三穗县第三中学 | D56: 22608033301 | E56: 189 | F56: 63.00 | G56: 37.80 | H56: 82.50 | I56: 33.00 | J56: 70.80 | K56: 2 | L56: 合格 | M56: 合格 | N56: 拟聘用
A57: 54 | B57: 杨凯 | C57: 三穗县第三中学 | D57: 22608033301 | E57: 173.5 | F57: 57.83 | G57: 34.70 | H57: 84.30 | I57: 33.72 | J57: 68.42 | K57: 3 | L57: 合格 | M57: 合格 | N57: 拟聘用
A58: 55 | B58: 袁倩 | C58: 三穗县第三中学 | D58: 22608033302 | E58: 201 | F58: 67.00 | G58: 40.20 | H58: 86.20 | I58: 34.48 | J58: 74.68 | K58: 1 | L58: 合格 | M58: 合格 | N58: 拟聘用
A59: 56 | B59: 姚茂丽 | C59: 三穗县第三中学 | D59: 22608033302 | E59: 190.5 | F59: 63.50 | G59: 38.10 | H59: 81.00 | I59: 32.40 | J59: 70.50 | K59: 2 | L59: 合格 | M59: 合格 | N59: 拟聘用
A60: 57 | B60: 刘开娟 | C60: 三穗县第三中学 | D60: 22608033303 | E60: 190.5 | F60: 63.50 | G60: 38.10 | H60: 88.20 | I60: 35.28 | J60: 73.38 | K60: 1 | L60: 合格 | M60: 合格 | N60: 拟聘用
A61: 58 | B61: 杨丹 | C61: 三穗县第三中学 | D61: 22608033303 | E61: 165 | F61: 55.00 | G61: 33.00 | H61: 82.80 | I61: 33.12 | J61: 66.12 | K61: 2 | L61: 合格 | M61: 合格 | N61: 拟聘用
A62: 59 | B62: 王颖 | C62: 三穗县第三中学 | D62: 22608033304 | E62: 185 | F62: 61.67 | G62: 37.00 | H62: 86.20 | I62: 34.48 | J62: 71.48 | K62: 1 | L62: 合格 | M62: 合格 | N62: 拟聘用
A63: 60 | B63: 胡洪霜 | C63: 三穗县第三中学 | D63: 22608033304 | E63: 188 | F63: 62.67 | G63: 37.60 | H63: 84.60 | I63: 33.84 | J63: 71.44 | K63: 2 | L63: 合格 | M63: 合格 | N63: 拟聘用
A64: 61 | B64: 陈妙 | C64: 三穗县第三中学 | D64: 22608033305 | E64: 186.5 | F64: 62.17 | G64: 37.30 | H64: 78.00 | I64: 31.20 | J64: 68.50 | K64: 1 | L64: 合格 | M64: 合格 | N64: 拟聘用
A65: 62 | B65: 王磊 | C65: 三穗县第三中学 | D65: 22608033307 | G65: 直接入围面试 | H65: 86.40 | I65: =H65 -> 86.40 | J65: =I65 -> 86.40 | K65: 1 | L65: 合格 | M65: 合格 | N65: 拟聘用
A66: 63 | B66: 刘云芬 | C66: 三穗县第三中学 | D66: 22608033308 | E66: 197.5 | F66: =E66/3 -> 65.83 | G66: =F66*0.6 -> 39.50 | H66: 81.88 | I66: =H66*0.4 -> 32.75 | J66: =G66+I66 -> 72.25 | K66: 1 | L66: 合格 | M66: 合格 | N66: 拟聘用
A67: 64 | B67: 方紫玲 | C67: 三穗县第三中学 | D67: 22608033310 | E67: 213 | F67: =E67/3 -> 71.00 | G67: =F67*0.6 -> 42.60 | H67: 81.60 | I67: =H67*0.4 -> 32.64 | J67: =G67+I67 -> 75.24 | K67: 1 | L67: 合格 | M67: 合格 | N67: 拟聘用
A68: 65 | B68: 徐威 | C68: 三穗县第三中学 | D68: 22608033312 | E68: 170 | F68: =E68/3 -> 56.67 | G68: =F68*0.6 -> 34.00 | H68: 72.40 | I68: =H68*0.4 -> 28.96 | J68: =G68+I68 -> 62.96 | K68: 1 | L68: 合格 | M68: 合格 | N68: 拟聘用
A69: 66 | B69: 杨光美 | C69: 三穗县第三中学 | D69: 22608033313 | E69: 211 | F69: 70.33 | G69: 42.20 | H69: 81.60 | I69: 32.64 | J69: 74.84 | K69: 1 | L69: 合格 | M69: 合格 | N69: 拟聘用
A70: 67 | B70: 文正云 | C70: 三穗县第三中学 | D70: 22608033314 | E70: 197.5 | F70: 65.83 | G70: 39.50 | H70: 79.20 | I70: 31.68 | J70: 71.18 | K70: 1 | L70: 合格 | M70: 合格 | N70: 拟聘用
A71: 68 | B71: 王雨洁 | C71: 三穗县第三中学 | D71: 22608033315 | E71: 203 | F71: 67.67 | G71: 40.60 | H71: 81.50 | I71: 32.60 | J71: 73.20 | K71: 1 | L71: 合格 | M71: 合格 | N71: 拟聘用
A72: 69 | B72: 王凡 | C72: 三穗县第三中学 | D72: 22608033316 | E72: 177 | F72: 59.00 | G72: 35.40 | H72: 83.30 | I72: 33.32 | J72: 68.72 | K72: 1 | L72: 合格 | M72: 合格 | N72: 拟聘用
A73: 70 | B73: 易霜霜 | C73: 三穗中学 | D73: 22608033401 | E73: 197.5 | F73: 65.83 | G73: 39.50 | H73: 81.20 | I73: 32.48 | J73: 71.98 | K73: 1 | L73: 合格 | M73: 合格 | N73: 拟聘用
A74: 71 | B74: 宋婉婷 | C74: 三穗中学 | D74: 22608033402 | E74: 198 | F74: 66.00 | G74: 39.60 | H74: 84.70 | I74: 33.88 | J74: 73.48 | K74: 1 | L74: 合格 | M74: 合格 | N74: 拟聘用
A75: 72 | B75: 胡英 | C75: 三穗中学 | D75: 22608033402 | E75: 187.5 | F75: 62.50 | G75: 37.50 | H75: 79.40 | I75: 31.76 | J75: 69.26 | K75: 2 | L75: 合格 | M75: 合格 | N75: 拟聘用
A76: 73 | B76: 罗季微 | C76: 三穗中学 | D76: 22608033404 | G76: 直接入围面试 | H76: 83.70 | I76: =H76 -> 83.70 | J76: =I76 -> 83.70 | K76: 1 | L76: 合格 | M76: 合格 | N76: 拟聘用
A77: 74 | B77: 邹欣欣 | C77: 三穗中学 | D77: 22608033404 | G77: 直接入围面试 | H77: 82.60 | I77: 82.60 | J77: 82.60 | K77: 2 | L77: 合格 | M77: 放弃政审 | N77: 取消进入下一环节资格。
A78: 75 | B78: 杨燮 | C78: 三穗中学 | D78: 22608033405 | G78: 直接入围面试 | H78: 78.20 | I78: 78.20 | J78: 78.20 | K78: 1 | L78: 合格 | M78: 合格 | N78: 拟聘用
A79: 76 | B79: 何丽君 | C79: 三穗中学 | D79: 22608033406 | E79: 194.5 | F79: =E79/3 -> 64.83 | G79: =F79*0.6 -> 38.90 | H79: 84.40 | I79: =H79*0.4 -> 33.76 | J79: =G79+I79 -> 72.66 | K79: 1 | L79: 合格 | M79: 合格 | N79: 拟聘用
A80: 77 | B80: 张露 | C80: 三穗中学 | D80: 22608033406 | E80: 187.5 | F80: =E80/3 -> 62.50 | G80: =F80*0.6 -> 37.50 | H80: 81.50 | I80: =H80*0.4 -> 32.60 | J80: =G80+I80 -> 70.10 | K80: 2 | L80: 合格 | M80: 合格 | N80: 拟聘用
A81: 78 | B81: 吴隆荣 | C81: 三穗中学 | D81: 22608033407 | E81: 196.5 | F81: =E81/3 -> 65.50 | G81: =F81*0.6 -> 39.30 | H81: 86.20 | I81: =H81*0.4 -> 34.48 | J81: =G81+I81 -> 73.78 | K81: 1 | L81: 合格 | M81: 合格 | N81: 拟聘用
A82: 79 | B82: 杨澜 | C82: 三穗中学 | D82: 22608033410 | E82: 213.5 | F82: =E82/3 -> 71.17 | G82: =F82*0.6 -> 42.70 | H82: 81.70 | I82: =H82*0.4 -> 32.68 | J82: =G82+I82 -> 75.38 | K82: 1 | L82: 合格 | M82: 合格 | N82: 拟聘用
A83: 80 | B83: 申娇 | C83: 三穗中学 | D83: 22608033411 | E83: 176.5 | F83: =E83/3 -> 58.83 | G83: =F83*0.6 -> 35.30 | H83: 83.76 | I83: =H83*0.4 -> 33.50 | J83: =G83+I83 -> 68.80 | K83: 1 | L83: 合格 | M83: 合格 | N83: 拟聘用
A84: 81 | B84: 姚茂雪 | C84: 三穗中学 | D84: 22608033412 | E84: 207.5 | F84: =E84/3 -> 69.17 | G84: =F84*0.6 -> 41.50 | H84: 82.80 | I84: =H84*0.4 -> 33.12 | J84: =G84+I84 -> 74.62 | K84: 1 | L84: 合格 | M84: 合格 | N84: 拟聘用
A85: 82 | B85: 杨政友 | C85: 三穗中学 | D85: 22608033413 | E85: 171 | F85: =E85/3 -> 57.00 | G85: =F85*0.6 -> 34.20 | H85: 83.60 | I85: =H85*0.4 -> 33.44 | J85: =G85+I85 -> 67.64 | K85: 1 | L85: 合格 | M85: 合格 | N85: 拟聘用
A86: 83 | B86: 娄香云 | C86: 三穗中学 | D86: 22608033415 | E86: 199.5 | F86: =E86/3 -> 66.50 | G86: =F86*0.6 -> 39.90 | H86: 73.90 | I86: =H86*0.4 -> 29.56 | J86: =G86+I86 -> 69.46 | K86: 1 | L86: 合格 | M86: 合格 | N86: 拟聘用
A87: 84 | B87: 边兴慧 | C87: 三穗中学 | D87: 22608033416 | E87: 180.5 | F87: =E87/3 -> 60.17 | G87: =F87*0.6 -> 36.10 | H87: 79.20 | I87: =H87*0.4 -> 31.68 | J87: =G87+I87 -> 67.78 | K87: 1 | L87: 合格 | M87: 合格 | N87: 拟聘用
A88: 85 | B88: 李倩倩 | C88: 三穗县城关第一小学 | D88: 22608033502 | E88: 193.5 | F88: =E88/3 -> 64.50 | G88: =F88*0.6 -> 38.70 | H88: 84.10 | I88: =H88*0.4 -> 33.64 | J88: =G88+I88 -> 72.34 | K88: 1 | L88: 合格 | M88: 合格 | N88: 拟聘用
A89: 86 | B89: 杨霞 | C89: 三穗县城关第一小学 | D89: 22608033502 | E89: 193 | F89: =E89/3 -> 64.33 | G89: =F89*0.6 -> 38.60 | H89: 81.60 | I89: =H89*0.4 -> 32.64 | J89: =G89+I89 -> 71.24 | K89: 2 | L89: 合格 | M89: 合格 | N89: 拟聘用
A90: 87 | B90: 陈瑛俊 | C90: 三穗县城关第一小学 | D90: 22608033502 | E90: 186 | F90: =E90/3 -> 62.00 | G90: =F90*0.6 -> 37.20 | H90: 80.86 | I90: =H90*0.4 -> 32.34 | J90: =G90+I90 -> 69.54 | K90: 3 | L90: 合格 | M90: 合格 | N90: 拟聘用
A91: 88 | B91: 龙春冬 | C91: 三穗县城关第一小学 | D91: 22608033503 | E91: 168.5 | F91: =E91/3 -> 56.17 | G91: =F91*0.6 -> 33.70 | H91: 84.65 | I91: =H91*0.4 -> 33.86 | J91: =G91+I91 -> 67.56 | K91: 1 | L91: 合格 | M91: 合格 | N91: 拟聘用
A92: 89 | B92: 蒋振莲 | C92: 三穗县城关第一小学 | D92: 22608033505 | E92: 179.5 | F92: =E92/3 -> 59.83 | G92: =F92*0.6 -> 35.90 | H92: 84.30 | I92: =H92*0.4 -> 33.72 | J92: =G92+I92 -> 69.62 | K92: 1 | L92: 合格 | M92: 合格 | N92: 拟聘用
A93: 90 | B93: 林源敏 | C93: 三穗县城关第一小学 | D93: 22608033505 | E93: 182.5 | F93: =E93/3 -> 60.83 | G93: =F93*0.6 -> 36.50 | H93: 81.00 | I93: =H93*0.4 -> 32.40 | J93: =G93+I93 -> 68.90 | K93: 2 | L93: 合格 | M93: 合格 | N93: 拟聘用
A94: 91 | B94: 吴燕春 | C94: 三穗县城关第一小学 | D94: 22608033505 | E94: 180 | F94: =E94/3 -> 60.00 | G94: =F94*0.6 -> 36.00 | H94: 81.60 | I94: =H94*0.4 -> 32.64 | J94: =G94+I94 -> 68.64 | K94: 3 | L94: 合格 | M94: 合格 | N94: 拟聘用
A95: 92 | B95: 杨海琴 | C95: 三穗县城关第一小学 | D95: 22608033505 | E95: 177 | F95: =E95/3 -> 59.00 | G95: =F95*0.6 -> 35.40 | H95: 78.40 | I95: =H95*0.4 -> 31.36 | J95: =G95+I95 -> 66.76 | K95: 4 | L95: 合格 | M95: 合格 | N95: 拟聘用
A96: 93 | B96: 胡瑞 | C96: 三穗县城关第一小学 | D96: 22608033507 | E96: 192 | F96: =E96/3 -> 64.00 | G96: =F96*0.6 -> 38.40 | H96: 82.17 | I96: =H96*0.4 -> 32.87 | J96: =G96+I96 -> 71.27 | K96: 1 | L96: 合格 | M96: 合格 | N96: 拟聘用
A97: 94 | B97: 尚潘 | C97: 三穗县城关第一小学 | D97: 22608033508 | E97: 181 | F97: 60.33 | G97: 36.20 | H97: 77.20 | I97: 30.88 | J97: 67.08 | K97: 1 | L97: 合格 | M97: 合格 | N97: 拟聘用
A98: 95 | B98: 李红 | C98: 三穗县城关第一小学 | D98: 22608033509 | E98: 187.5 | F98: 62.50 | G98: 37.50 | H98: 81.00 | I98: 32.40 | J98: 69.90 | K98: 1 | L98: 合格 | M98: 合格 | N98: 拟聘用
A99: 96 | B99: 廖颖 | C99: 三穗县城关第一小学 | D99: 22608033510 | E99: 179 | F99: 59.67 | G99: 35.80 | H99: 80.20 | I99: 32.08 | J99: 67.88 | K99: 1 | L99: 合格 | M99: 合格 | N99: 拟聘用
A100: 97 | B100: 杨青青 | C100: 三穗县城关第一小学 | D100: 22608033511 | E100: 168 | F100: 56.00 | G100: 33.60 | H100: 80.00 | I100: 32.00 | J100: 65.60 | K100: 1 | L100: 合格 | M100: 合格 | N100: 拟聘用
A101: 98 | B101: 张友菊 | C101: 三穗县城关第一小学 | D101: 22608033512 | E101: 175.5 | F101: 58.50 | G101: 35.10 | H101: 77.60 | I101: 31.04 | J101: 66.14 | K101: 1 | L101: 合格 | M101: 合格 | N101: 拟聘用
A102: 99 | B102: 陈晶 | C102: 三穗县城关第一小学 | D102: 22608033514 | E102: 202.5 | F102: =E102/3 -> 67.50 | G102: =F102*0.6 -> 40.50 | H102: 82.40 | I102: =H102*0.4 -> 32.96 | J102: =G102+I102 -> 73.46 | K102: 1 | L102: 合格 | M102: 合格 | N102: 拟聘用
A103: 100 | B103: 李茜 | C103: 三穗县城关第三小学 | D103: 22608033602 | E103: 179 | F103: =E103/3 -> 59.67 | G103: =F103*0.6 -> 35.80 | H103: 83.80 | I103: =H103*0.4 -> 33.52 | J103: =G103+I103 -> 69.32 | K103: 1 | L103: 合格 | M103: 合格 | N103: 拟聘用
A104: 101 | B104: 杨楠 | C104: 三穗县城关第三小学 | D104: 22608033603 | E104: 188.5 | F104: =E104/3 -> 62.83 | G104: =F104*0.6 -> 37.70 | H104: 82.00 | I104: =H104*0.4 -> 32.80 | J104: =G104+I104 -> 70.50 | K104: 1 | L104: 合格 | M104: 合格 | N104: 拟聘用
